bitfinex/quotes_BTCUSD_20250617
["timestamp","ask_amount","ask_price","bid_price","bid_amount"]
[1750181732687,0.10583647,104220.0,104210.0,0.3023938]
[1750181732903,0.3073332,104220.0,104210.0,0.29279844]
[1750181733114,0.31692828,104220.0,104210.0,0.29279844]
[1750181733336,0.32652318,104220.0,104210.0,0.3023938]
[1750181733561,0.35002572,104220.0,104210.0,0.35183107]
[1750181733803,0.55152245,104220.0,104210.0,0.29279853]
[1750181734029,0.35002572,104220.0,104210.0,0.31198934]
[1750181734251,0.55152245,104220.0,104210.0,0.30239398]
[1750181734468,0.53233357,104220.0,104210.0,0.0070911]
[1750181734901,0.53233357,104220.0,104210.0,0.19901126]
[1750181735130,0.53233357,104220.0,104210.0,0.21820299]
[1750181735354,0.53233357,104220.0,104210.0,0.22779844]
[1750181735355,0.30733357,104220.0,104210.0,0.22779844]
[1750181735575,0.53229357,104220.0,104210.0,0.29149844]
[1750181735799,0.53229357,104220.0,104210.0,0.27230726]
[1750181736015,0.52265858,104220.0,104210.0,0.0707911]
[1750181736667,0.52265858,104220.0,104210.0,0.27230726]
[1750181736877,0.52265858,104220.0,104210.0,0.0707911]
[1750181737089,0.52265858,104220.0,104210.0,0.0387911]
[1750181737453,0.52265858,104220.0,104210.0,0.0070911]
[1750181737715,0.52265858,104220.0,104210.0,0.21820299]
[1750181737903,0.52265858,104220.0,104210.0,0.25120299]
[1750181738309,0.52265858,104220.0,104210.0,0.0400911]
[1750181738491,0.5130635,104220.0,104210.0,0.0070911]
[1750181738664,0.93468296,104220.0,104210.0,0.0070911]
[1750181739319,0.93468336,104220.0,104210.0,0.0070911]
[1750181739833,1.32082421,104220.0,104210.0,0.0070911]
[1750181740252,1.35312421,104220.0,104210.0,0.0070911]
[1750181740666,1.3818063,104220.0,104210.0,9.11e-05]
[1750181740882,1.5318063,104220.0,104210.0,0.0020911]
[1750181741085,1.5318063,104220.0,104210.0,0.0040911]
[1750181741324,1.5318063,104220.0,104210.0,0.0020911]
[1750181741325,1.57004909,104220.0,104210.0,0.0020911]
[1750181741555,1.57004909,104220.0,104210.0,9.11e-05]
[1750181742529,1.57005124,104220.0,104210.0,9.11e-05]
[1750181742732,1.57008663,104220.0,104210.0,9.11e-05]
[1750181743115,1.54136915,104220.0,104210.0,9.11e-05]
[1750181743504,1.57008655,104220.0,104210.0,9.11e-05]
[1750181743904,1.59873334,104220.0,104210.0,9.11e-05]
[1750181744760,1.64873334,104220.0,104210.0,9.11e-05]
[1750181744979,0.41411598,104210.0,104200.0,4e-05]
[1750181745208,1.12196862,104210.0,104200.0,0.00013096]
[1750181745564,1.32476862,104210.0,104200.0,0.00013096]
[1750181745790,1.07217975,104210.0,104200.0,0.00013096]
[1750181746023,1.29605351,104210.0,104200.0,0.00013096]
[1750181746247,1.07217351,104210.0,104200.0,0.00013096]
[1750181746453,1.29601351,104210.0,104200.0,0.00013096]
[1750181746910,1.32472238,104210.0,104200.0,0.00013096]
[1750181748008,1.29601351,104210.0,104200.0,0.00013096]
[1750181748636,1.32472238,104210.0,104200.0,0.00013096]
[1750181748884,0.91242073,104210.0,104200.0,0.00013096]
[1750181749106,1.32731351,104210.0,104200.0,0.00013096]
[1750181749984,1.32731317,104210.0,104200.0,0.00013096]
[1750181750885,1.35614917,104210.0,104200.0,0.00013096]
[1750181752983,1.34942652,104210.0,104200.0,0.00013096]
[1750181753206,1.35614927,104210.0,104200.0,0.00013096]
[1750181753657,1.35546927,104210.0,104200.0,0.00013096]
[1750181755897,1.35546901,104210.0,104200.0,0.00013096]
[1750181757305,1.35546855,104210.0,104200.0,0.00013096]
[1750181758910,1.32416855,104210.0,104200.0,0.00013096]
[1750181760056,1.35285502,104210.0,104200.0,0.00013096]
[1750181760521,1.80266133,104210.0,104200.0,0.00013096]
[1750181760759,0.55117231,104180.0,104170.0,0.0647]
[1750181760991,0.55117231,104180.0,104160.0,0.0649]
[1750181760992,0.20159335,104170.0,104160.0,0.0649]
[1750181761219,0.88388789,104170.0,104160.0,0.0649]
[1750181761446,0.4979862,104170.0,104160.0,0.25691228]
[1750181761690,0.50758561,104170.0,104160.0,0.27611295]
[1750181761924,0.50758561,104170.0,104160.0,0.26651271]
[1750181762151,0.4883867,104170.0,104160.0,0.0649]
[1750181762392,0.90337028,104170.0,104160.0,0.0649]
[1750181762613,0.90337028,104170.0,104160.0,0.0332]
[1750181763070,0.19201228,104160.0,104150.0,0.27397296]
[1750181763305,0.12504285,104160.0,104150.0,0.29317501]
[1750181763531,0.31705513,104160.0,104150.0,0.28357412]
[1750181763748,0.32665574,104160.0,104150.0,0.2931751]
[1750181763975,0.30745517,104160.0,104150.0,0.27397306]
[1750181764208,0.11544252,104160.0,104150.0,0.30577618]
[1750181764474,0.33619415,104160.0,104150.0,0.28657431]
[1750181764675,0.33619415,104160.0,104150.0,0.26737171]
[1750181764937,0.75108693,104160.0,104150.0,0.25777072]
[1750181765159,0.74148669,104160.0,104150.0,0.25777072]
[1750181765384,0.35502117,104160.0,104150.0,0.29617537]
[1750181765615,0.09624176,104160.0,104150.0,0.29617537]
[1750181765843,9.08e-05,104170.0,104160.0,0.283913]
[1750181766059,9.08e-05,104170.0,104160.0,0.69880578]
[1750181766283,0.39195015,104190.0,104180.0,0.27427249]
[1750181766511,0.53751191,104190.0,104180.0,0.28434574]
[1750181766725,0.53751191,104190.0,104180.0,0.27474734]
[1750181766940,0.31699191,104190.0,104180.0,0.27474734]
[1750181767436,0.53743191,104190.0,104180.0,0.28434574]
[1750181767687,1.27313001,104190.0,104180.0,0.00047485]
[1750181767910,1.35430254,104190.0,104180.0,0.00047485]
[1750181768799,1.41641896,104190.0,104180.0,0.00047485]
[1750181769244,1.43938124,104190.0,104180.0,0.00047485]
[1750181769480,1.44611511,104190.0,104180.0,0.00047485]
[1750181769933,1.44511511,104190.0,104180.0,0.00047485]
[1750181770153,1.50866449,104190.0,104180.0,0.00047485]
[1750181770386,7.24643649,104190.0,104180.0,0.00047485]
[1750181770615,0.98064649,104160.0,104150.0,4e-05]
[1750181770853,1.30382212,104160.0,104150.0,0.0089807]
[1750181771324,0.88892934,104160.0,104150.0,0.0089807]
[1750181771562,1.30382212,104160.0,104150.0,0.0089807]
[1750181772037,1.30382212,104160.0,104150.0,0.06094]
[1750181772038,0.64745462,104160.0,104150.0,0.06094]
[1750181772238,0.87439081,104160.0,104150.0,0.06094]
[1750181772495,0.86765462,104160.0,104150.0,0.06094]
[1750181772711,1.2825474,104160.0,104150.0,0.06594]
[1750181773157,1.2825474,104160.0,104150.0,0.005]
[1750181773389,1.2825474,104160.0,104150.0,0.01393121]
[1750181774292,1.2825474,104160.0,104150.0,0.04493121]
[1750181774293,0.86765462,104160.0,104150.0,0.04493121]
[1750181774515,1.2825474,104160.0,104150.0,0.04493121]
[1750181774746,1.2825474,104160.0,104150.0,0.036]
[1750181774964,1.2825474,104160.0,104150.0,0.04492888]
[1750181775846,1.2825474,104160.0,104150.0,0.036]
[1750181776076,1.29708825,104160.0,104150.0,0.005]
[1750181776317,1.30329392,104160.0,104150.0,0.005]
[1750181776543,1.3032932,104160.0,104150.0,0.005]
[1750181776763,1.29656825,104160.0,104150.0,0.005]
[1750181777441,1.3032902,104160.0,104150.0,0.005]
[1750181777955,1.92106298,104160.0,104150.0,0.005]
[1750181778177,1.95136298,104160.0,104150.0,0.005]
[1750181778609,1.98246298,104160.0,104150.0,0.005]
[1750181779041,0.22085514,104140.0,104130.0,0.26567059]
[1750181779254,0.29536774,104140.0,104130.0,0.27458945]
[1750181779468,0.49701935,104140.0,104130.0,0.27458945]
[1750181779681,0.89270842,104140.0,104130.0,0.26498678]
[1750181779902,0.89270842,104140.0,104130.0,0.03991918]
[1750181780345,0.28576602,104140.0,104130.0,0.28233524]
[1750181780583,0.48741754,104140.0,104130.0,0.28233543]
[1750181780807,0.47781555,104140.0,104130.0,0.07106154]
[1750181781021,0.50592445,104140.0,104130.0,0.07106154]
[1750181781487,0.92081723,104140.0,104130.0,0.00906154]
[1750181781700,0.93535808,104140.0,104130.0,0.0120618]
[1750181781920,0.93535808,104140.0,104130.0,0.0170618]
[1750181782137,0.93535808,104140.0,104130.0,0.00814236]
[1750181782360,1.27535808,104140.0,104130.0,0.00814236]
[1750181783746,1.27535808,104140.0,104130.0,0.01705926]
[1750181784435,1.27535808,104140.0,104130.0,0.00814236]
[1750181785793,0.8604653,104140.0,104130.0,0.00814236]
[1750181786012,1.27535808,104140.0,104130.0,0.20981324]
[1750181786260,0.49315664,104140.0,104130.0,0.29461898]
[1750181786488,0.36291437,104140.0,104130.0,0.29461898]
[1750181786934,0.03845198,104150.0,104140.0,0.28295541]
[1750181787158,0.90528688,104150.0,104140.0,0.2733536]
[1750181787377,0.94371443,104150.0,104140.0,0.29255749]
[1750181787613,0.91486343,104150.0,104140.0,0.3021593]
[1750181787829,1.40506398,104150.0,104140.0,0.28295559]
[1750181788046,1.16590167,104150.0,104140.0,0.28295559]
[1750181788266,1.22490274,104150.0,104140.0,0.26575152]
[1750181788489,1.21530167,104150.0,104140.0,0.27835379]
[1750181788706,1.20570023,104150.0,104140.0,0.27835379]
[1750181789164,1.1960987,104150.0,104140.0,0.25914916]
[1750181789382,1.61099148,104150.0,104140.0,0.0671]
[1750181789602,1.1960987,104150.0,104140.0,0.26875152]
[1750181790263,1.1960987,104150.0,104140.0,0.27835379]
[1750181790983,1.1960987,104150.0,104140.0,0.27835388]
[1750181791205,1.1960987,104150.0,104140.0,0.29755805]
[1750181791441,1.22490283,104150.0,104140.0,0.29755805]
[1750181791667,1.22490283,104150.0,104140.0,0.28795606]
[1750181791891,1.22490283,104150.0,104140.0,0.29755814]
[1750181792338,1.22490283,104150.0,104140.0,0.30716004]
[1750181792590,0.97387003,104150.0,104140.0,0.3071594]
[1750181792810,1.40350363,104150.0,104140.0,0.28795569]
[1750181793067,0.64347138,104150.0,104140.0,0.2975575]
[1750181793288,0.86183138,104150.0,104140.0,0.2975575]
[1750181793516,1.06346354,104150.0,104140.0,0.2975575]
[1750181793726,0.85223003,104150.0,104140.0,0.2975575]
[1750181793953,0.86183128,104150.0,104140.0,0.2975575]
[1750181794183,1.07306497,104150.0,104140.0,0.27835361]
[1750181794409,1.07306497,104150.0,104140.0,0.28795569]
[1750181794410,1.05386292,104150.0,104140.0,0.28795569]
[1750181795295,1.03466023,104150.0,104140.0,0.25914916]
[1750181795511,1.04426148,104150.0,104140.0,0.29755759]
[1750181795732,1.04426093,104150.0,104140.0,0.29755759]
[1750181795950,0.86183165,104150.0,104140.0,0.29755759]
[1750181796169,1.05386237,104150.0,104140.0,0.28795578]
[1750181796396,0.85223021,104150.0,104140.0,0.29755759]
[1750181796632,0.64347082,104150.0,104140.0,0.29755759]
[1750181796906,0.53864,104150.0,104140.0,0.77937938]
[1750181797118,0.53864,104150.0,104140.0,0.3644866]
[1750181797334,0.53864,104150.0,104140.0,0.29755759]
[1750181797556,0.53612,104150.0,104140.0,0.29755759]
[1750181798228,0.48768,104150.0,104140.0,0.29755759]
[1750181798649,0.49728079,104150.0,104140.0,0.29755759]
[1750181798862,0.48768,104150.0,104140.0,0.29755759]
[1750181799070,0.4972807,104150.0,104140.0,0.29755759]
[1750181799286,0.48768,104150.0,104140.0,0.39370681]
[1750181802122,0.48768,104150.0,104140.0,0.93434224]
[1750181802787,0.0676379,104170.0,104160.0,0.283413]
[1750181802999,0.09562775,104170.0,104160.0,0.453293]
[1750181803678,1.12671608,104180.0,104170.0,0.28339181]
[1750181803681,0.84475402,104180.0,104170.0,0.28339181]
[1750181803921,0.75823597,104180.0,104170.0,0.35491367]
[1750181804154,0.6906,104180.0,104170.0,0.35491367]
[1750181804375,0.70019803,104180.0,104170.0,0.35491367]
[1750181804614,0.94870282,104180.0,104170.0,0.13412186]
[1750181804891,0.01919799,104170.0,104160.0,0.46489315]
[1750181805107,0.02879722,104170.0,104160.0,0.46289315]
[1750181805352,0.00959886,104170.0,104160.0,0.46289315]
[1750181805556,0.01919781,104170.0,104160.0,0.46289315]
[1750181805778,0.00959886,104170.0,104160.0,0.55904237]
[1750181806001,0.23039067,104170.0,104160.0,0.55900237]
[1750181806228,0.03839672,104170.0,104160.0,0.29301315]
[1750181806454,0.04339672,104170.0,104160.0,0.46285315]
[1750181806692,0.04339663,104170.0,104160.0,0.29301315]
[1750181806920,0.03379722,104170.0,104160.0,0.46285315]
[1750181807141,0.04339663,104170.0,104160.0,0.46285315]
[1750181807392,0.0261979,104170.0,104160.0,0.46285315]
[1750181807628,0.05499604,104170.0,104160.0,0.46285315]
[1750181807853,0.04539645,104170.0,104160.0,0.46285315]
[1750181808087,0.03579713,104170.0,104160.0,0.46285315]
[1750181808316,0.01659895,104170.0,104160.0,0.46285315]
[1750181809017,0.02619836,104170.0,104160.0,0.46285315]
[1750181809249,0.02619827,104170.0,104160.0,0.46285315]
[1750181809476,0.22779153,104170.0,104160.0,0.29301315]
[1750181809693,0.04539728,104170.0,104160.0,0.46285315]
[1750181810160,0.03579768,104170.0,104160.0,0.46285315]
[1750181810378,0.02619827,104170.0,104160.0,0.46285315]
[1750181810612,0.02619827,104170.0,104160.0,0.29301315]
[1750181810862,0.02619827,104170.0,104150.0,0.20161469]
[1750181810863,0.02880017,104160.0,104150.0,0.20161469]
[1750181811108,0.23041288,104160.0,104150.0,0.28661748]
[1750181811339,0.21121304,104160.0,104150.0,0.23431525]
[1750181811570,0.20161271,104160.0,104150.0,0.2247139]
[1750181811793,0.20163216,104150.0,104140.0,0.27705324]
[1750181812013,0.22083457,104150.0,104140.0,0.45645569]
[1750181812498,0.2788761,104150.0,104140.0,0.45645587]
[1750181812724,0.2788761,104150.0,104140.0,0.0327]
[1750181812945,0.02880635,104140.0,104130.0,0.45647662]
[1750181813169,0.01920343,104140.0,104130.0,0.45647662]
[1750181814063,0.02880542,104140.0,104130.0,0.45647662]
[1750181814283,0.02880533,104140.0,104130.0,0.45661898]
[1750181814526,0.02880533,104140.0,104130.0,0.28681898]
[1750181814760,0.01919984,104160.0,104150.0,0.29623499]
[1750181815016,0.06763855,104170.0,104160.0,0.25351292]
[1750181815243,0.038397,104170.0,104160.0,0.44681295]
[1750181815471,0.0772375,104170.0,104160.0,0.45641291]
[1750181815708,0.00959895,104170.0,104160.0,0.45641291]
[1750181815937,0.08687557,104190.0,104180.0,0.21117249]
[1750181816163,0.36543137,104190.0,104180.0,0.21117249]
[1750181816406,0.69583408,104190.0,104180.0,0.0323]
[1750181816629,0.68623651,104190.0,104170.0,0.27329221]
[1750181816852,0.00959849,104180.0,104170.0,0.27329221]
[1750181817084,0.23036993,104180.0,104170.0,0.27329295]
[1750181817309,0.22124586,104180.0,104170.0,0.45265236]
[1750181817538,0.26559078,104180.0,104170.0,0.27329295]
[1750181817763,0.26559078,104180.0,104160.0,0.45147282]
[1750181817764,0.01919901,104170.0,104160.0,0.45147282]
[1750181817995,0.21119286,104170.0,104160.0,0.45147282]
[1750181818228,0.01919901,104170.0,104160.0,0.28171282]
[1750181818474,0.01919901,104170.0,104160.0,0.45147282]
[1750181818932,0.01919854,104170.0,104160.0,0.45147282]
[1750181819154,0.23039168,104170.0,104160.0,0.28571282]
[1750181819369,0.23999072,104170.0,104160.0,0.22481292]
[1750181819585,0.23999072,104170.0,104160.0,0.39457292]
[1750181820270,0.02879758,104170.0,104160.0,0.40417288]
[1750181820491,0.23039112,104170.0,104160.0,0.40417288]
[1750181820714,0.22079208,104170.0,104160.0,0.20561271]
[1750181820935,0.21119295,104170.0,104160.0,0.20561271]
[1750181821157,0.21119295,104170.0,104160.0,0.19601228]
[1750181821379,0.02879804,104170.0,104160.0,0.40417342]
[1750181821615,0.03839672,104170.0,104160.0,0.51872927]
[1750181821845,0.03839663,104170.0,104160.0,0.51872927]
[1750181822076,0.30743452,104170.0,104160.0,0.004]
[1750181822339,0.7223273,104170.0,104160.0,0.19601228]
[1750181822561,0.30743452,104170.0,104160.0,0.21521322]
[1750181822800,0.29783511,104170.0,104160.0,0.20561289]
[1750181823027,0.73612839,104170.0,104160.0,0.004]
[1750181823704,0.28823561,104170.0,104160.0,0.19601228]
[1750181823962,0.28823561,104170.0,104160.0,0.20561271]
[1750181824423,0.28823561,104170.0,104160.0,0.21521332]
[1750181824640,0.29783511,104170.0,104160.0,0.21521332]
[1750181824869,0.29783511,104170.0,104160.0,0.004]
[1750181825104,0.29783511,104170.0,104160.0,0.20561289]
[1750181825334,0.32667711,104170.0,104160.0,0.21521341]
[1750181826047,0.32667711,104170.0,104160.0,0.22481384]
[1750181826264,0.32667711,104170.0,104160.0,0.20561289]
[1750181826502,0.32667711,104170.0,104160.0,0.22481365]
[1750181826720,0.32667711,104170.0,104160.0,0.20561289]
[1750181826967,0.32667711,104170.0,104160.0,0.21521332]
[1750181827189,0.32667711,104170.0,104160.0,0.004]
[1750181827418,0.74156989,104170.0,104160.0,0.004]
[1750181827655,0.12508376,104170.0,104160.0,0.21521322]
[1750181827928,0.12508376,104170.0,104160.0,0.27578991]
[1750181827929,0.39423529,104170.0,104160.0,0.27578991]
[1750181828162,0.79952912,104170.0,104160.0,0.19601228]
[1750181828384,0.21184085,104170.0,104160.0,0.23441342]
[1750181828608,0.20224135,104170.0,104160.0,0.30041342]
[1750181828834,0.20224135,104170.0,104160.0,0.30041361]
[1750181828835,0.40383489,104170.0,104160.0,0.30041361]
[1750181829096,0.35547489,104170.0,104160.0,0.30041361]
[1750181829338,0.21184085,104170.0,104160.0,0.37718597]
[1750181829582,0.20224135,104170.0,104160.0,0.31001357]
[1750181829814,0.21184085,104170.0,104160.0,0.31001357]
[1750181830300,0.20224135,104170.0,104160.0,0.31001357]
[1750181830555,0.21184085,104170.0,104160.0,0.31001357]
[1750181830781,0.18697748,104170.0,104160.0,0.31001357]
[1750181831018,0.38857083,104170.0,104160.0,0.30041361]
[1750181831277,0.38857083,104170.0,104160.0,0.47009342]
[1750181831495,0.39817043,104170.0,104160.0,0.47009342]
[1750181831722,0.38857148,104170.0,104160.0,0.47009361]
[1750181832167,0.79386503,104170.0,104160.0,0.41789322]
[1750181832389,0.79386503,104170.0,104160.0,0.24821322]
[1750181832619,0.78426562,104170.0,104160.0,0.21521341]
[1750181832858,0.78426562,104170.0,104160.0,0.004]
[1750181833074,0.94434612,104170.0,104160.0,0.004]
[1750181833306,0.94434612,104170.0,104160.0,0.21521304]
[1750181833746,0.94434612,104170.0,104160.0,0.004]
[1750181833987,1.33058697,104170.0,104160.0,0.004]
[1750181834248,1.78501927,104170.0,104160.0,0.004]
[1750181834472,1.20044649,104170.0,104160.0,0.004]
[1750181834912,0.22083365,104150.0,104140.0,0.22085374]
[1750181835134,0.32667694,104150.0,104140.0,0.20164985]
[1750181835358,0.32667694,104150.0,104140.0,0.22085411]
[1750181835636,0.35552294,104150.0,104140.0,0.22085411]
[1750181835852,0.34592224,104150.0,104140.0,0.22085402]
[1750181836077,0.76081502,104150.0,104140.0,0.21125221]
[1750181836295,0.76081502,104150.0,104140.0,0.22085439]
[1750181836542,0.34592224,104150.0,104140.0,0.24105828]
[1750181836763,0.39428224,104150.0,104140.0,0.24105828]
[1750181836988,0.39428224,104150.0,104140.0,0.20264994]
[1750181837217,0.79957404,104150.0,104140.0,0.001]
[1750181837440,0.79957404,104150.0,104140.0,0.005]
[1750181838143,0.79957404,104150.0,104140.0,0.21625379]
[1750181838365,0.79957404,104150.0,104140.0,0.005]
[1750181838592,0.78997279,104150.0,104140.0,0.005]
[1750181839039,0.82257279,104150.0,104140.0,0.005]
[1750181839260,0.78997279,104150.0,104140.0,0.20665152]
[1750181839524,1.12997279,104150.0,104140.0,0.004]
[1750181839750,1.21684709,104150.0,104140.0,0.004]
[1750181839958,0.00960384,104120.0,104110.0,0.2764662]
[1750181840183,0.01920721,104120.0,104110.0,0.4460662]
[1750181840409,0.01920703,104120.0,104110.0,0.4460662]
[1750181840630,0.03841461,104120.0,104110.0,0.27646675]
[1750181840876,0.23050066,104120.0,104110.0,0.27646675]
[1750181841103,0.68415117,104120.0,104110.0,0.20174972]
[1750181841330,0.71588337,104120.0,104110.0,0.20189208]
[1750181841555,0.71588337,104120.0,104110.0,0.00018236]
[1750181841556,0.83135054,104120.0,104110.0,0.00018236]
[1750181841811,0.82435054,104120.0,104110.0,0.00018236]
[1750181842038,1.05460554,104120.0,104110.0,0.00018236]
[1750181842284,1.08500554,104120.0,104110.0,0.00018236]
[1750181842728,1.02280554,104120.0,104110.0,0.20289199]
[1750181842965,0.80484554,104120.0,104110.0,0.19328686]
[1750181843182,1.02280554,104120.0,104110.0,0.00518236]
[1750181843417,1.05460554,104120.0,104110.0,0.00118236]
[1750181843642,1.05460554,104120.0,104110.0,0.00318236]
[1750181843889,1.85443917,104120.0,104110.0,0.00218236]
[1750181844346,1.86116085,104120.0,104110.0,0.00218236]
[1750181844566,1.43954639,104120.0,104110.0,0.00218236]
[1750181845028,1.44054639,104120.0,104110.0,0.00018236]
[1750181845258,1.85543917,104120.0,104110.0,0.00018236]
[1750181845505,7.59692194,104120.0,104110.0,0.00018236]
[1750181845716,6.96406916,104120.0,104110.0,0.00018236]
[1750181845940,7.17531839,104120.0,104110.0,0.00018236]
[1750181846374,7.18202906,104120.0,104110.0,0.00018236]
[1750181846602,6.76713628,104120.0,104110.0,0.00018236]
[1750181846828,7.17531839,104120.0,104110.0,0.00018236]
[1750181847277,0.73095276,104120.0,104110.0,0.00018236]
[1750181847498,1.36380554,104120.0,104110.0,0.00018236]
[1750181847735,7.37265117,104120.0,104110.0,0.00018236]
[1750181847960,7.59731383,104120.0,104110.0,0.00018236]
[1750181848218,7.37935424,104120.0,104110.0,0.00018236]
[1750181848450,7.59631424,104120.0,104110.0,0.00018236]
[1750181849147,7.59631424,104120.0,104100.0,0.0001]
[1750181849148,6.77031517,104110.0,104100.0,0.0001]
[1750181849375,6.86655693,104110.0,104100.0,0.0001908]
[1750181850934,6.83435693,104110.0,104100.0,0.0001908]
[1750181851170,6.83435693,104110.0,104100.0,0.0002308]
[1750181851389,6.83535693,104110.0,104100.0,0.0002308]
[1750181852038,6.86675693,104110.0,104100.0,0.0002308]
[1750181852266,7.06971693,104110.0,104100.0,0.0002308]
[1750181852733,7.28747693,104110.0,104100.0,0.0002308]
[1750181857728,7.28743693,104110.0,104100.0,0.0002308]
[1750181860584,7.02091693,104110.0,104100.0,0.0002308]
[1750181861041,1.28614493,104110.0,104100.0,0.0002308]
[1750181862410,1.28610493,104110.0,104100.0,0.0002308]
[1750181864180,7.05988488,104110.0,104100.0,0.0002308]
[1750181864393,7.09188488,104110.0,104100.0,0.0002308]
[1750181865065,7.05988488,104110.0,104100.0,0.0002308]
[1750181865517,7.05744488,104110.0,104100.0,0.0002308]
[1750181865739,7.18307201,104110.0,104100.0,0.0002308]
[1750181866821,7.18307991,104110.0,104100.0,0.0002308]
[1750181868002,7.21178197,104110.0,104100.0,0.0002308]
[1750181869446,0.07744085,104100.0,104090.0,0.0003595]
[1750181869677,7.069943,104100.0,104090.0,0.0005019]
[1750181869923,1.34579307,104100.0,104090.0,0.0005019]
[1750181870155,0.99854029,104100.0,104090.0,0.0005019]
[1750181870403,0.73760859,104100.0,104090.0,0.0629019]
[1750181870627,0.32057791,104100.0,104090.0,0.28386349]
[1750181870858,0.32057791,104100.0,104090.0,0.0629019]
[1750181870859,0.31197288,104100.0,104090.0,0.0629019]
[1750181871084,0.72686566,104100.0,104090.0,0.0629019]
[1750181871318,0.82310742,104100.0,104090.0,0.0629019]
[1750181871541,0.82510742,104100.0,104090.0,0.0629019]
[1750181871807,0.86663157,104100.0,104090.0,0.0629019]
[1750181872021,0.87037017,104100.0,104090.0,0.0629019]
[1750181872464,0.45547739,104100.0,104090.0,0.0629019]
[1750181872686,0.87137017,104100.0,104090.0,0.0629019]
[1750181872904,0.87137017,104100.0,104090.0,0.0305019]
[1750181873130,1.42507509,104100.0,104090.0,0.0005019]
[1750181873360,1.39527738,104100.0,104090.0,0.0005019]
[1750181873591,1.39527751,104100.0,104090.0,0.0005019]
[1750181874260,1.42847751,104100.0,104090.0,0.0005019]
[1750181874484,7.19200036,104100.0,104090.0,0.0005019]
[1750181874938,7.19200244,104100.0,104090.0,0.0005019]
[1750181875650,7.26064523,104100.0,104090.0,0.0005019]
[1750181875871,7.23189438,104100.0,104090.0,0.0005019]
[1750181876593,7.16429438,104100.0,104090.0,0.0005019]
[1750181876812,7.35145438,104100.0,104090.0,0.0005019]
[1750181877257,7.40881857,104100.0,104090.0,0.0005019]
[1750181877714,7.40881997,104100.0,104090.0,0.0005019]
[1750181877951,7.81596996,104100.0,104090.0,0.0005019]
[1750181878197,7.43947562,104100.0,104090.0,0.0005019]
[1750181879303,7.44447562,104100.0,104090.0,0.0005019]
[1750181879518,7.38611143,104100.0,104090.0,0.0005019]
[1750181879782,7.44643562,104100.0,104090.0,0.0005019]
[1750181880240,7.38607143,104100.0,104090.0,0.0005019]
[1750181880459,7.38607032,104100.0,104090.0,0.0005019]
[1750181880698,7.38907033,104100.0,104090.0,0.0005019]
[1750181881841,1.06453385,104090.0,104080.0,4e-05]
[1750181882082,1.61052363,104090.0,104080.0,4e-05]
[1750181882309,0.73950852,104080.0,104070.0,4e-05]
[1750181882533,7.78742161,104080.0,104070.0,0.00018245]
[1750181882756,7.97580615,104080.0,104070.0,0.00018245]
[1750181883216,0.55141582,104060.0,104050.0,0.0323]
[1750181883451,0.20182585,104050.0,104040.0,0.0604]
[1750181883669,0.88224039,104050.0,104040.0,0.06932428]
[1750181884114,0.92072487,104050.0,104040.0,0.27116962]
[1750181884547,0.50583209,104050.0,104040.0,0.27185684]
[1750181884766,0.92072487,104050.0,104040.0,0.29039289]
[1750181885000,0.96947244,104050.0,104040.0,0.30000411]
[1750181885218,0.07762082,104050.0,104040.0,0.36379714]
[1750181885436,0.14484132,104050.0,104040.0,0.36379714]
[1750181885660,0.33705743,104050.0,104040.0,0.36579732]
[1750181885912,0.12562082,104050.0,104040.0,0.36579006]
[1750181886131,0.07762027,104050.0,104040.0,0.36579006]
[1750181886351,0.13523057,104050.0,104040.0,0.35687213]
[1750181886574,0.13523057,104050.0,104040.0,0.30669023]
[1750181886801,0.13523057,104050.0,104040.0,0.32452749]
[1750181887294,0.15445181,104050.0,104040.0,0.33344721]
[1750181887932,0.34666709,104050.0,104040.0,0.33344721]
[1750181888375,0.15445181,104050.0,104040.0,0.33344721]
[1750181888599,0.34666709,104050.0,104040.0,0.30669023]
[1750181888816,0.34666709,104050.0,104040.0,0.33344638]
[1750181888817,0.14484114,104050.0,104040.0,0.33344638]
[1750181889036,0.115315,104050.0,104040.0,0.33344142]
[1750181889255,0.31714095,104050.0,104040.0,0.33344151]
[1750181889482,0.12492567,104050.0,104040.0,0.31560849]
[1750181889709,0.73149738,104050.0,104040.0,0.09315079]
[1750181889933,0.82773914,104050.0,104040.0,0.28538454]
[1750181890155,0.82773914,104050.0,104040.0,0.09315079]
[1750181890601,0.82773914,104050.0,104040.0,0.09314673]
[1750181891325,0.82773914,104050.0,104040.0,0.036]
[1750181891542,0.82773914,104050.0,104040.0,0.02383215]
[1750181891754,1.16773914,104050.0,104040.0,0.02383215]
[1750181891968,1.16773914,104050.0,104040.0,0.006]
[1750181892187,1.21437999,104050.0,104040.0,0.006]
[1750181892863,1.25120699,104050.0,104040.0,0.006]
[1750181893300,1.22110685,104050.0,104040.0,0.006]
[1750181893528,1.21437999,104050.0,104040.0,0.006]
[1750181893745,1.22110907,104050.0,104040.0,0.006]
[1750181894894,1.22110907,104050.0,104040.0,0.004]
[1750181895120,0.22108866,104030.0,104020.0,0.29212307]
[1750181895346,1.05299919,104030.0,104020.0,0.04001418]
[1750181896242,1.05299919,104030.0,104020.0,0.00891418]
[1750181896461,1.05299919,104030.0,104020.0,0.00047503]
[1750181896679,1.05299919,104030.0,104020.0,0.01339239]
[1750181896909,0.63810641,104030.0,104020.0,0.01339244]
[1750181897141,1.05299919,104030.0,104020.0,0.00447503]
[1750181897644,1.13144004,104030.0,104020.0,0.00447503]
[1750181897875,0.65264726,104030.0,104020.0,0.00447503]
[1750181898111,1.06754004,104030.0,104020.0,0.00347503]
[1750181898583,1.06954004,104030.0,104020.0,0.00047503]
[1750181898829,0.97129828,104030.0,104020.0,0.00047503]
[1750181899056,0.54186465,104030.0,104020.0,0.00047503]
[1750181899282,0.85530641,104030.0,104020.0,0.25394574]
[1750181899503,0.85530641,104030.0,104020.0,0.06167503]
[1750181899734,0.85530641,104030.0,104020.0,0.26355927]
[1750181899991,0.85530641,104030.0,104020.0,0.06167503]
[1750181899992,1.27019919,104030.0,104020.0,0.06167503]
[1750181900223,1.2700651,104030.0,104020.0,0.06167503]
[1750181900465,1.2700651,104030.0,104020.0,0.03077503]
[1750181900940,0.86971317,104030.0,104020.0,0.00047503]
[1750181901174,1.28460595,104030.0,104020.0,0.00047503]
[1750181901643,0.86971317,104030.0,104020.0,0.00047503]
[1750181901883,1.28460595,104030.0,104020.0,0.00047503]
[1750181902118,0.20188406,104020.0,104010.0,0.02647503]
[1750181902340,1.2032186,104020.0,104010.0,0.02661757]
[1750181902597,1.2032186,104020.0,104010.0,0.00905526]
[1750181903028,1.5432186,104020.0,104010.0,0.04115526]
[1750181903276,1.5432186,104020.0,104010.0,0.04315526]
[1750181903767,1.5432186,104020.0,104010.0,0.03424254]
[1750181903990,1.5721026,104020.0,104010.0,0.04315271]
[1750181904458,1.57191147,104020.0,104010.0,0.04415271]
[1750181905347,1.57191147,104020.0,104010.0,0.01205271]
[1750181907415,1.57191147,104020.0,104010.0,0.00314254]
[1750181908541,1.57191147,104020.0,104010.0,0.00014254]